[Event "Early-Titled-Tuesday-Blitz-August-29-2023"]
[Site "Chess.com"]
[Date "2023.08.29"]
[Round "3"]
[White "dropstoneDP"]
[Black "Goryachkina"]
[Result "0-1"]
[WhiteElo "2966"]
[BlackElo "2651"]
[TimeControl "180+1"]
[EndTime "8:30:24 PDT"]
[Termination "Goryachkina won on time"]

1. e4 {[%clk 0:03:00.9]} 1... c6 {[%clk 0:02:59.5]} 2. d4 {[%clk 0:02:59.3]}
2... d5 {[%clk 0:02:59.3]} 3. e5 {[%clk 0:02:59.9]} 3... Bf5 {[%clk 0:02:58.7]}
4. Nf3 {[%clk 0:03:00.3]} 4... e6 {[%clk 0:02:58.3]} 5. Be2 {[%clk 0:03:00.9]}
5... Ne7 {[%clk 0:02:58]} 6. c3 {[%clk 0:03:00.2]} 6... Nd7 {[%clk 0:02:44.4]}
7. O-O {[%clk 0:02:56.1]} 7... h6 {[%clk 0:02:43.7]} 8. a4 {[%clk 0:02:56.4]}
8... a5 {[%clk 0:02:25.7]} 9. Na3 {[%clk 0:02:55.4]} 9... Bh7 {[%clk 0:02:20.3]}
10. Nc2 {[%clk 0:02:52.9]} 10... Ng6 {[%clk 0:02:07.5]} 11. g3 {[%clk
0:02:51.5]} 11... Be7 {[%clk 0:02:03.7]} 12. h4 {[%clk 0:02:50.4]} 12... Nb6
{[%clk 0:01:58.9]} 13. Ne3 {[%clk 0:02:48.2]} 13... Qc7 {[%clk 0:01:53.4]} 14.
Bd3 {[%clk 0:02:47.3]} 14... Nf8 {[%clk 0:01:48.6]} 15. Bxh7 {[%clk 0:02:44.6]}
15... Nxh7 {[%clk 0:01:48.6]} 16. Qd3 {[%clk 0:02:44.9]} 16... Nf8 {[%clk
0:01:47.5]} 17. Kg2 {[%clk 0:02:44]} 17... Nfd7 {[%clk 0:01:40.8]} 18. h5 {[%clk
0:02:42.5]} 18... c5 {[%clk 0:01:32.2]} 19. Bd2 {[%clk 0:02:41.4]} 19... c4
{[%clk 0:01:26.9]} 20. Qc2 {[%clk 0:02:40.2]} 20... O-O {[%clk 0:01:12.3]} 21.
Ng4 {[%clk 0:02:39.5]} 21... f5 {[%clk 0:00:35.4]} 22. exf6 {[%clk 0:02:38.2]}
22... Nxf6 {[%clk 0:00:35.3]} 23. Bf4 {[%clk 0:02:38.8]} 23... Bd6 {[%clk
0:00:26.1]} 24. Nxh6+ {[%clk 0:02:24.1]} 24... gxh6 {[%clk 0:00:25.2]} 25. Qg6+
{[%clk 0:02:24.5]} 25... Kh8 {[%clk 0:00:25]} 26. Qxh6+ {[%clk 0:02:25]} 26...
Nh7 {[%clk 0:00:21.4]} 27. Bxd6 {[%clk 0:02:21.9]} 27... Qxd6 {[%clk 0:00:21.3]}
28. Ng5 {[%clk 0:02:22.5]} 28... Qe7 {[%clk 0:00:16.1]} 29. Nxh7 {[%clk
0:02:16.8]} 29... Qxh7 {[%clk 0:00:16.2]} 30. Qxe6 {[%clk 0:02:17.5]} 30... Nd7
{[%clk 0:00:14.5]} 31. Qxd5 {[%clk 0:02:13.6]} 31... Nf6 {[%clk 0:00:14.7]} 32.
Qxc4 {[%clk 0:02:14.2]} 32... Qe4+ {[%clk 0:00:14.5]} 33. f3 {[%clk 0:02:14.5]}
33... Qf5 {[%clk 0:00:14.4]} 34. Rae1 {[%clk 0:02:07.8]} 34... Rg8 {[%clk
0:00:14]} 35. Rg1 {[%clk 0:00:40.4]} 35... Qf4 {[%clk 0:00:10.1]} 36. Kh2 {[%clk
0:00:25.2]} 36... Qxf3 {[%clk 0:00:09.5]} 37. Ref1 {[%clk 0:00:15.8]} 37... Ng4+
{[%clk 0:00:09.3]} 38. Kh3 {[%clk 0:00:16.3]} 38... Nf2+ {[%clk 0:00:09.1]} 39.
Rxf2 {[%clk 0:00:15]} 39... Qxf2 {[%clk 0:00:09.3]} 40. Qe6 {[%clk 0:00:15.7]}
40... Rg7 {[%clk 0:00:08.6]} 41. h6 {[%clk 0:00:11.2]} 41... Rf7 {[%clk
0:00:08.5]} 42. Re1 {[%clk 0:00:09.7]} 42... Qf5+ {[%clk 0:00:08.6]} 43. Qxf5
{[%clk 0:00:09.6]} 43... Rxf5 {[%clk 0:00:09.5]} 44. Re7 {[%clk 0:00:10.1]}
44... b5 {[%clk 0:00:09.7]} 45. axb5 {[%clk 0:00:09.8]} 45... Rxb5 {[%clk
0:00:09.9]} 46. g4 {[%clk 0:00:06.2]} 46... Rxb2 {[%clk 0:00:09.9]} 47. g5
{[%clk 0:00:06.9]} 47... Rg8 {[%clk 0:00:10.1]} 48. Re5 {[%clk 0:00:06.1]} 48...
a4 {[%clk 0:00:10.3]} 49. Ra5 {[%clk 0:00:06.7]} 49... a3 {[%clk 0:00:09.7]} 50.
Kg4 {[%clk 0:00:03.3]} 50... Rg2+ {[%clk 0:00:09.6]} 51. Kf4 {[%clk 0:00:03.1]}
51... R2xg5 {[%clk 0:00:09.8]} 52. Rxa3 {[%clk 0:00:02.9]} 52... Rg4+ {[%clk
0:00:09.9]} 53. Ke5 {[%clk 0:00:03.5]} 53... R8g5+ {[%clk 0:00:08.8]} 54. Kd6
{[%clk 0:00:04]} 54... Rg6+ {[%clk 0:00:09.4]} 55. Kc5 {[%clk 0:00:04.5]} 55...
Rxh6 {[%clk 0:00:08.7]} 56. c4 {[%clk 0:00:04.9]} 56... Kg7 {[%clk 0:00:08.4]}
57. d5 {[%clk 0:00:05]} 57... Kf7 {[%clk 0:00:08.7]} 58. Re3 {[%clk 0:00:03.7]}
58... Rhh4 {[%clk 0:00:07.4]} 59. Rc3 {[%clk 0:00:02.2]} 59... Ke7 {[%clk
0:00:07.7]} 60. Kb5 {[%clk 0:00:02.4]} 60... Kd6 {[%clk 0:00:07.6]} 61. Rc2
{[%clk 0:00:02.1]} 61... Rd4 {[%clk 0:00:07.4]} 62. Rc3 {[%clk 0:00:02.3]} 62...
Rh8 {[%clk 0:00:07]} 63. Kb4 {[%clk 0:00:01.2]} 63... Rb8+ {[%clk 0:00:06.9]}
64. Ka3 {[%clk 0:00:01.5]} 64... Kc5 {[%clk 0:00:07.4]} 65. Rc2 {[%clk
0:00:01.1]} 65... Rxc4 {[%clk 0:00:07.7]} 66. Rd2 {[%clk 0:00:01.8]} 66... Rcb4
{[%clk 0:00:06.6]} 0-1

[Event "Early-Titled-Tuesday-Blitz-August-29-2023"]
[Site "Chess.com"]
[Date "2023.08.29"]
[Round "3"]
[White "Irina_Mikhaylova"]
[Black "Magila31"]
[Result "0-1"]
[WhiteElo "2277"]
[BlackElo "2467"]
[TimeControl "180+1"]
[EndTime "8:30:25 PDT"]
[Termination "Magila31 won by checkmate"]

1. Nf3 {[%clk 0:03:00.9]} 1... g6 {[%clk 0:02:59.1]} 2. c4 {[%clk 0:02:59.2]}
2... Bg7 {[%clk 0:02:58.5]} 3. d4 {[%clk 0:02:59.6]} 3... d6 {[%clk 0:02:58.2]}
4. Nc3 {[%clk 0:02:59.6]} 4... Nf6 {[%clk 0:02:58.1]} 5. e4 {[%clk 0:02:59.8]}
5... O-O {[%clk 0:02:57.8]} 6. Be2 {[%clk 0:03:00.3]} 6... c5 {[%clk 0:02:57.3]}
7. O-O {[%clk 0:03:00.3]} 7... Nc6 {[%clk 0:02:56.9]} 8. d5 {[%clk 0:02:59.8]}
8... Na5 {[%clk 0:02:57]} 9. Bf4 {[%clk 0:02:51.9]} 9... Bg4 {[%clk 0:02:54.5]}
10. Qd3 {[%clk 0:02:35.3]} 10... Nd7 {[%clk 0:02:45.3]} 11. b3 {[%clk
0:02:28.2]} 11... Bxf3 {[%clk 0:02:37.9]} 12. Bxf3 {[%clk 0:02:28.3]} 12... Ne5
{[%clk 0:02:37.4]} 13. Bxe5 {[%clk 0:02:14.5]} 13... Bxe5 {[%clk 0:02:36.4]} 14.
Rac1 {[%clk 0:02:14.5]} 14... a6 {[%clk 0:02:35.7]} 15. g3 {[%clk 0:02:08.5]}
15... Rb8 {[%clk 0:02:28.1]} 16. Be2 {[%clk 0:02:07.2]} 16... Qd7 {[%clk
0:02:13]} 17. Kg2 {[%clk 0:02:06.7]} 17... f5 {[%clk 0:01:55.4]} 18. exf5 {[%clk
0:01:43.7]} 18... Qxf5 {[%clk 0:01:48.8]} 19. Ne4 {[%clk 0:01:22.2]} 19... b5
{[%clk 0:01:42.4]} 20. f4 {[%clk 0:01:12.5]} 20... Bd4 {[%clk 0:01:39.3]} 21. h3
{[%clk 0:01:12.3]} 21... bxc4 {[%clk 0:01:38.1]} 22. bxc4 {[%clk 0:01:12]} 22...
Rb2 {[%clk 0:01:35.6]} 23. Rc2 {[%clk 0:01:11.2]} 23... Rfb8 {[%clk 0:01:33.9]}
24. Bg4 {[%clk 0:01:10]} 24... Qf8 {[%clk 0:01:25.6]} 25. Rc1 {[%clk 0:01:04.5]}
25... Qe8 {[%clk 0:01:19.5]} 26. Be6+ {[%clk 0:00:59.7]} 26... Kh8 {[%clk
0:01:14.3]} 27. Ng5 {[%clk 0:00:59.7]} 27... Qa4 {[%clk 0:01:07.4]} 28. Qe2
{[%clk 0:00:49.4]} 28... Qxc4 {[%clk 0:01:00.9]} 29. Kf3 {[%clk 0:00:33.3]}
29... Qxe2+ {[%clk 0:00:57.6]} 30. Rxe2 {[%clk 0:00:33]} 30... Rxe2 {[%clk
0:00:56.8]} 31. Kxe2 {[%clk 0:00:33.3]} 31... Rb2+ {[%clk 0:00:56.5]} 32. Kf3
{[%clk 0:00:33.8]} 32... Rxa2 {[%clk 0:00:55.4]} 33. Rb1 {[%clk 0:00:30.1]}
33... Rb2 {[%clk 0:00:54.3]} 34. Re1 {[%clk 0:00:29.9]} 34... Rb3+ {[%clk
0:00:43.2]} 35. Kg4 {[%clk 0:00:27.7]} 35... Bf2 {[%clk 0:00:40.3]} 36. Re2
{[%clk 0:00:20.1]} 36... Rxg3+ {[%clk 0:00:39.2]} 37. Kh4 {[%clk 0:00:20.3]}
37... Rg2+ {[%clk 0:00:34.5]} 38. Rxf2 {[%clk 0:00:18.6]} 38... Rxf2 {[%clk
0:00:34.7]} 39. Bg4 {[%clk 0:00:19.3]} 39... Rxf4 {[%clk 0:00:32.7]} 40. Kg3
{[%clk 0:00:19.2]} 40... Rd4 {[%clk 0:00:27.6]} 41. Nf7+ {[%clk 0:00:16.2]}
41... Kg7 {[%clk 0:00:26.9]} 42. Nd8 {[%clk 0:00:16.5]} 42... Rd3+ {[%clk
0:00:25.6]} 43. Kh4 {[%clk 0:00:16.9]} 43... Kf6 {[%clk 0:00:24]} 44. Ne6 {[%clk
0:00:15.2]} 44... h5 {[%clk 0:00:22.2]} 45. Nf4 {[%clk 0:00:12]} 45... hxg4
{[%clk 0:00:18.5]} 46. Nxd3 {[%clk 0:00:10.9]} 46... gxh3 {[%clk 0:00:18.5]} 47.
Kxh3 {[%clk 0:00:11]} 47... c4 {[%clk 0:00:18.6]} 48. Nb4 {[%clk 0:00:11]} 48...
Ke5 {[%clk 0:00:16.2]} 49. Kg4 {[%clk 0:00:10.5]} 49... c3 {[%clk 0:00:14.9]}
50. Kf3 {[%clk 0:00:09.8]} 50... Kf5 {[%clk 0:00:12.9]} 51. Ke3 {[%clk
0:00:08.4]} 51... g5 {[%clk 0:00:11.5]} 52. Nd3 {[%clk 0:00:08.4]} 52... Nb3
{[%clk 0:00:09.3]} 53. Ne1 {[%clk 0:00:04.4]} 53... g4 {[%clk 0:00:08.1]} 54.
Kd3 {[%clk 0:00:04.4]} 54... Kf4 {[%clk 0:00:05.7]} 55. Kxc3 {[%clk 0:00:04.5]}
55... Nc5 {[%clk 0:00:05.8]} 56. Kd4 {[%clk 0:00:04.8]} 56... g3 {[%clk
0:00:05.3]} 57. Ng2+ {[%clk 0:00:05.2]} 57... Kf3 {[%clk 0:00:05.3]} 58. Nh4+
{[%clk 0:00:05.6]} 58... Kf2 {[%clk 0:00:05.2]} 59. Kc4 {[%clk 0:00:03.2]} 59...
g2 {[%clk 0:00:05.4]} 60. Nf5 {[%clk 0:00:03.3]} 60... g1=Q {[%clk 0:00:05]} 61.
Nd4 {[%clk 0:00:03.4]} 61... Qc1+ {[%clk 0:00:04.5]} 62. Kb4 {[%clk 0:00:03.6]}
62... Qb2+ {[%clk 0:00:04.3]} 63. Ka5 {[%clk 0:00:03.2]} 63... Qxd4 {[%clk
0:00:03.8]} 64. Kb6 {[%clk 0:00:04]} 64... Qb4+ {[%clk 0:00:03.8]} 65. Kc6
{[%clk 0:00:03.8]} 65... Qb7# {[%clk 0:00:03.8]} 0-1

[Event "Early-Titled-Tuesday-Blitz-August-29-2023"]
[Site "Chess.com"]
[Date "2023.08.29"]
[Round "3"]
[White "topin8"]
[Black "Fh2411"]
[Result "1-0"]
[WhiteElo "2478"]
[BlackElo "2649"]
[TimeControl "180+1"]
[EndTime "8:30:28 PDT"]
[Termination "topin8 won by resignation"]

1. e4 {[%clk 0:02:58.7]} 1... c6 {[%clk 0:03:00.1]} 2. Nf3 {[%clk 0:02:55.8]}
2... d5 {[%clk 0:03:00.4]} 3. Nc3 {[%clk 0:02:56.4]} 3... dxe4 {[%clk
0:02:58.4]} 4. Nxe4 {[%clk 0:02:56.1]} 4... Nf6 {[%clk 0:02:59]} 5. Nxf6+ {[%clk
0:02:55.2]} 5... exf6 {[%clk 0:02:59.9]} 6. d4 {[%clk 0:02:55.8]} 6... Bd6
{[%clk 0:03:00.4]} 7. Bd3 {[%clk 0:02:55.9]} 7... O-O {[%clk 0:03:00.9]} 8. O-O
{[%clk 0:02:56.5]} 8... Re8 {[%clk 0:02:57.9]} 9. h3 {[%clk 0:02:55.6]} 9... Nd7
{[%clk 0:02:58.4]} 10. c3 {[%clk 0:02:55.9]} 10... Nf8 {[%clk 0:02:58.9]} 11.
Be3 {[%clk 0:02:52.1]} 11... Be6 {[%clk 0:02:59.2]} 12. Qd2 {[%clk 0:02:51.2]}
12... Qc7 {[%clk 0:02:47.7]} 13. c4 {[%clk 0:02:45.8]} 13... Rad8 {[%clk
0:02:46.4]} 14. Rac1 {[%clk 0:02:44.4]} 14... Qd7 {[%clk 0:02:31.3]} 15. Bf4
{[%clk 0:02:14.7]} 15... g5 {[%clk 0:02:28.2]} 16. Bxd6 {[%clk 0:02:10.4]} 16...
Qxd6 {[%clk 0:02:29.1]} 17. Rfd1 {[%clk 0:02:05.7]} 17... Ng6 {[%clk 0:02:24.3]}
18. Bxg6 {[%clk 0:02:00]} 18... hxg6 {[%clk 0:02:25.2]} 19. Qc3 {[%clk
0:01:55.5]} 19... g4 {[%clk 0:02:22.5]} 20. hxg4 {[%clk 0:01:46.8]} 20... Bxg4
{[%clk 0:02:23.4]} 21. d5 {[%clk 0:01:37.2]} 21... c5 {[%clk 0:01:56.3]} 22. g3
{[%clk 0:01:31.9]} 22... Kg7 {[%clk 0:01:33.7]} 23. Kg2 {[%clk 0:01:17]} 23...
Qd7 {[%clk 0:01:27.2]} 24. Rh1 {[%clk 0:01:13.8]} 24... Qf5 {[%clk 0:01:22.7]}
25. Rce1 {[%clk 0:00:50.4]} 25... Re4 {[%clk 0:01:16.7]} 26. Nh4 {[%clk
0:00:36.2]} 26... Qe5 {[%clk 0:01:01.4]} 27. Qxe5 {[%clk 0:00:26.8]} 27... Rxe5
{[%clk 0:01:02.3]} 28. f4 {[%clk 0:00:19.2]} 28... Ree8 {[%clk 0:00:55.4]} 29.
Kf2 {[%clk 0:00:19.3]} 29... Rxe1 {[%clk 0:00:37.8]} 30. Rxe1 {[%clk 0:00:19.5]}
30... b5 {[%clk 0:00:38.2]} 31. Ng2 {[%clk 0:00:08.8]} 31... bxc4 {[%clk
0:00:34.2]} 32. Ne3 {[%clk 0:00:09.2]} 32... Bc8 {[%clk 0:00:34]} 33. Rd1 {[%clk
0:00:05.5]} 33... Ba6 {[%clk 0:00:34.3]} 34. Rd2 {[%clk 0:00:04.2]} 34... Kf8
{[%clk 0:00:31.4]} 35. Ke1 {[%clk 0:00:04.2]} 35... Ke7 {[%clk 0:00:31.2]} 36.
Kd1 {[%clk 0:00:04.6]} 36... Kd6 {[%clk 0:00:31]} 37. Kc2 {[%clk 0:00:04.6]}
37... Re8 {[%clk 0:00:30.5]} 38. Ng4 {[%clk 0:00:05.1]} 38... f5 {[%clk
0:00:17.2]} 39. Ne5 {[%clk 0:00:05.2]} 39... Re7 {[%clk 0:00:16.7]} 40. b3
{[%clk 0:00:03.2]} 40... cxb3+ {[%clk 0:00:16.3]} 41. axb3 {[%clk 0:00:04.1]}
41... g5 {[%clk 0:00:16.6]} 42. Kc3 {[%clk 0:00:04]} 42... f6 {[%clk 0:00:16.9]}
43. Nc4+ {[%clk 0:00:03.8]} 43... Bxc4 {[%clk 0:00:16.9]} 44. bxc4 {[%clk
0:00:04.7]} 44... Re3+ {[%clk 0:00:17.1]} 45. Rd3 {[%clk 0:00:03.4]} 45... Re4
{[%clk 0:00:14.5]} 46. Rf3 {[%clk 0:00:02.9]} 46... a5 {[%clk 0:00:14.3]} 47.
Kb3 {[%clk 0:00:03.1]} 47... a4+ {[%clk 0:00:13.5]} 48. Kc3 {[%clk 0:00:02.9]}
48... a3 {[%clk 0:00:13.2]} 49. fxg5 {[%clk 0:00:03.4]} 49... a2 {[%clk
0:00:12.2]} 50. Kb2 {[%clk 0:00:03.1]} 50... fxg5 {[%clk 0:00:12.5]} 51. Rxf5
{[%clk 0:00:03.3]} 51... Rxc4 {[%clk 0:00:11.8]} 52. Kxa2 {[%clk 0:00:03.5]}
52... g4 {[%clk 0:00:11.5]} 53. Rg5 {[%clk 0:00:03.8]} 53... Rd4 {[%clk
0:00:11.6]} 54. Kb3 {[%clk 0:00:04.4]} 54... Rd3+ {[%clk 0:00:11.3]} 55. Kc4
{[%clk 0:00:04.9]} 55... Rxg3 {[%clk 0:00:12.2]} 56. Rg6+ {[%clk 0:00:05]} 56...
Kd7 {[%clk 0:00:12.3]} 57. Kxc5 {[%clk 0:00:05.9]} 57... Rg1 {[%clk 0:00:12.6]}
58. Rg7+ {[%clk 0:00:06.2]} 58... Kc8 {[%clk 0:00:12]} 59. Kc6 {[%clk
0:00:05.3]} 59... Rc1+ {[%clk 0:00:11.4]} 60. Kd6 {[%clk 0:00:05.6]} 60... Rg1
{[%clk 0:00:12.3]} 61. Rg8+ {[%clk 0:00:05.4]} 61... Kb7 {[%clk 0:00:12.2]} 62.
Rg7+ {[%clk 0:00:01.3]} 62... Kc8 {[%clk 0:00:12.4]} 63. Rg8+ {[%clk 0:00:01.8]}
63... Kb7 {[%clk 0:00:12.9]} 64. Ke7 {[%clk 0:00:02.4]} 64... g3 {[%clk
0:00:10.5]} 65. d6 {[%clk 0:00:02.9]} 65... g2 {[%clk 0:00:11.2]} 66. d7 {[%clk
0:00:03.4]} 66... Re1+ {[%clk 0:00:11.7]} 67. Kf8 {[%clk 0:00:03.3]} 67... Rd1
{[%clk 0:00:11.9]} 68. Ke8 {[%clk 0:00:03.9]} 68... Re1+ {[%clk 0:00:12.5]} 69.
Kf7 {[%clk 0:00:04.5]} 69... Rd1 {[%clk 0:00:12.6]} 70. Rxg2 {[%clk 0:00:03.9]}
70... Rd6 {[%clk 0:00:12.3]} 71. Ke7 {[%clk 0:00:03.9]} 71... Rd2 {[%clk
0:00:11.6]} 72. Rxd2 {[%clk 0:00:03.9]} 1-0

[Event "Early-Titled-Tuesday-Blitz-August-29-2023"]
[Site "Chess.com"]
[Date "2023.08.29"]
[Round "3"]
[White "CheckThis4"]
[Black "Actuary44"]
[Result "0-1"]
[WhiteElo "2670"]
[BlackElo "2485"]
[TimeControl "180+1"]
[EndTime "8:30:30 PDT"]
[Termination "Actuary44 won on time"]

1. e4 {[%clk 0:03:00.9]} 1... c5 {[%clk 0:02:59.5]} 2. c3 {[%clk 0:03:00.7]}
2... d5 {[%clk 0:02:58.6]} 3. exd5 {[%clk 0:03:00.5]} 3... Qxd5 {[%clk
0:02:59.5]} 4. d4 {[%clk 0:02:59.6]} 4... cxd4 {[%clk 0:03:00.4]} 5. cxd4 {[%clk
0:02:59.2]} 5... Nc6 {[%clk 0:03:00.5]} 6. Nf3 {[%clk 0:02:58.7]} 6... Bg4
{[%clk 0:03:00.2]} 7. Be2 {[%clk 0:02:54.6]} 7... e6 {[%clk 0:03:00.2]} 8. Nc3
{[%clk 0:02:54.1]} 8... Bb4 {[%clk 0:03:00.2]} 9. O-O {[%clk 0:02:53.4]} 9...
Bxc3 {[%clk 0:03:00.3]} 10. bxc3 {[%clk 0:02:54.1]} 10... Nge7 {[%clk
0:03:00.7]} 11. h3 {[%clk 0:02:54.4]} 11... Bf5 {[%clk 0:02:58.9]} 12. Ba3
{[%clk 0:02:39.9]} 12... O-O {[%clk 0:02:53.8]} 13. Re1 {[%clk 0:02:37]} 13...
Rfd8 {[%clk 0:02:44.9]} 14. Nd2 {[%clk 0:02:24.1]} 14... Rac8 {[%clk 0:02:15.7]}
15. Bf3 {[%clk 0:02:16.9]} 15... Qa5 {[%clk 0:02:13.8]} 16. Nc4 {[%clk
0:01:54.8]} 16... Qxc3 {[%clk 0:02:11.2]} 17. Rc1 {[%clk 0:01:41.9]} 17... Qxd4
{[%clk 0:02:05.5]} 18. Nd6 {[%clk 0:01:26.8]} 18... Rb8 {[%clk 0:01:14.1]} 19.
Qxd4 {[%clk 0:01:08.3]} 19... Nxd4 {[%clk 0:01:15]} 20. Bxb7 {[%clk 0:01:08.3]}
20... Nc2 {[%clk 0:01:05.7]} 21. Nxf5 {[%clk 0:01:03.8]} 21... Nxf5 {[%clk
0:01:06.6]} 22. Rxc2 {[%clk 0:00:57.8]} 22... Rxb7 {[%clk 0:01:06.9]} 23. g4
{[%clk 0:00:43.2]} 23... Nd4 {[%clk 0:01:05]} 24. Rd1 {[%clk 0:00:38.4]} 24...
f6 {[%clk 0:00:40.5]} 25. Kg2 {[%clk 0:00:29.5]} 25... Nxc2 {[%clk 0:00:34.8]}
26. Rxd8+ {[%clk 0:00:28.8]} 26... Kf7 {[%clk 0:00:35.7]} 27. Rf8+ {[%clk
0:00:27.8]} 27... Kg6 {[%clk 0:00:35.9]} 28. Bc5 {[%clk 0:00:28.4]} 28... Rc7
{[%clk 0:00:34.3]} 29. Bd6 {[%clk 0:00:24]} 29... Rd7 {[%clk 0:00:33.8]} 30. Bf4
{[%clk 0:00:20.6]} 30... e5 {[%clk 0:00:29.2]} 31. Bc1 {[%clk 0:00:20.1]} 31...
Ne1+ {[%clk 0:00:28.5]} 32. Kg3 {[%clk 0:00:19.9]} 32... Rd3+ {[%clk 0:00:26.7]}
33. Be3 {[%clk 0:00:19.5]} 33... Nc2 {[%clk 0:00:22.8]} 34. Kf3 {[%clk
0:00:19.8]} 34... Nxe3 {[%clk 0:00:22.1]} 35. fxe3 {[%clk 0:00:20.7]} 35... Ra3
{[%clk 0:00:20]} 36. h4 {[%clk 0:00:20.6]} 36... h6 {[%clk 0:00:18.5]} 37. h5+
{[%clk 0:00:20.2]} 37... Kh7 {[%clk 0:00:19]} 38. Ke4 {[%clk 0:00:17.2]} 38...
Rxa2 {[%clk 0:00:18.9]} 39. Ra8 {[%clk 0:00:16.5]} 39... a5 {[%clk 0:00:17.6]}
40. Kf5 {[%clk 0:00:16.4]} 40... a4 {[%clk 0:00:15]} 41. Ke6 {[%clk 0:00:16.7]}
41... a3 {[%clk 0:00:06.6]} 42. Kf7 {[%clk 0:00:16.6]} 42... Rg2 {[%clk
0:00:06.8]} 43. Rxa3 {[%clk 0:00:15.5]} 43... Rxg4 {[%clk 0:00:07]} 44. Ra7
{[%clk 0:00:15.1]} 44... Rg5 {[%clk 0:00:06.8]} 45. Kf8 {[%clk 0:00:15.2]} 45...
f5 {[%clk 0:00:07.3]} 46. Rf7 {[%clk 0:00:11.7]} 46... f4 {[%clk 0:00:07.8]} 47.
e4 {[%clk 0:00:11.8]} 47... Rg3 {[%clk 0:00:06.7]} 48. Ke7 {[%clk 0:00:08.9]}
48... Rg4 {[%clk 0:00:02.4]} 49. Ke6 {[%clk 0:00:09]} 49... Rg5 {[%clk
0:00:02.6]} 50. Rf8 {[%clk 0:00:08.6]} 50... Rxh5 {[%clk 0:00:02.9]} 51. Rf7
{[%clk 0:00:07.6]} 51... Rg5 {[%clk 0:00:03.3]} 52. Ke7 {[%clk 0:00:05.5]} 52...
h5 {[%clk 0:00:03.8]} 53. Ke6 {[%clk 0:00:06.1]} 53... h4 {[%clk 0:00:04.4]} 54.
Rc7 {[%clk 0:00:06.4]} 54... h3 {[%clk 0:00:04.6]} 55. Rc3 {[%clk 0:00:07.3]}
55... Rg3 {[%clk 0:00:04.5]} 56. Rc2 {[%clk 0:00:07.7]} 56... Rg2 {[%clk
0:00:04.5]} 57. Rc3 {[%clk 0:00:07.5]} 57... h2 {[%clk 0:00:04.5]} 58. Rh3+
{[%clk 0:00:07.4]} 58... Kg6 {[%clk 0:00:05]} 59. Kxe5 {[%clk 0:00:08.1]} 59...
Kg5 {[%clk 0:00:05.3]} 60. Rh7 {[%clk 0:00:06.6]} 60... Kg4 {[%clk 0:00:05.1]}
61. Rxg7+ {[%clk 0:00:06.3]} 61... Kf3 {[%clk 0:00:05.6]} 62. Rh7 {[%clk
0:00:06.7]} 62... Ke3 {[%clk 0:00:05]} 63. Kd5 {[%clk 0:00:05.6]} 63... f3
{[%clk 0:00:05.4]} 64. Rh3 {[%clk 0:00:05.9]} 64... Ke2 {[%clk 0:00:05]} 65. e5
{[%clk 0:00:05.6]} 65... f2 {[%clk 0:00:05.5]} 66. e6 {[%clk 0:00:05.3]} 66...
f1=Q {[%clk 0:00:05.6]} 67. e7 {[%clk 0:00:06.2]} 67... Qf5+ {[%clk 0:00:05.6]}
68. Kd6 {[%clk 0:00:06.2]} 68... Rg6+ {[%clk 0:00:05.4]} 69. Kc7 {[%clk
0:00:06.1]} 69... Qxh3 {[%clk 0:00:04.9]} 70. e8=Q+ {[%clk 0:00:05.6]} 70... Kf1
{[%clk 0:00:04]} 71. Qxg6 {[%clk 0:00:05.1]} 71... h1=Q {[%clk 0:00:04]} 72.
Qb1+ {[%clk 0:00:04.4]} 72... Kg2 {[%clk 0:00:04]} 73. Qc2+ {[%clk 0:00:05]}
73... Kg3 {[%clk 0:00:04.5]} 74. Qg6+ {[%clk 0:00:03.6]} 74... Qg4 {[%clk
0:00:04.5]} 75. Qd3+ {[%clk 0:00:03.8]} 75... Qhf3 {[%clk 0:00:03.8]} 76. Qd2
{[%clk 0:00:01.3]} 76... Qgf4+ {[%clk 0:00:04]} 0-1